[Event "*** Titled Tuesday Blitz"]
[Site "Chess.com"]
[Date "2021.04.27"]
[Round "9"]
[White "ural58"]
[Black "Julianos82"]
[Result "1-0"]
[WhiteElo "2469"]
[BlackElo "2313"]
[TimeControl "180+1"]
[EndTime "11:45:35 PDT"]
[Termination "ural58 won by checkmate"]

1. e4 {[%clk 0:02:57.6]} 1... c5 {[%clk 0:02:59.6]} 2. b3 {[%clk 0:02:57.5]}
2... b6 {[%clk 0:02:57.8]} 3. d4 {[%clk 0:02:56.2]} 3... cxd4 {[%clk 0:02:51.1]}
4. Qxd4 {[%clk 0:02:56.2]} 4... Bb7 {[%clk 0:02:48.9]} 5. Bb2 {[%clk 0:02:56.2]}
5... Nc6 {[%clk 0:02:43.7]} 6. Qd2 {[%clk 0:02:56.2]} 6... e6 {[%clk 0:02:40.9]}
7. Nc3 {[%clk 0:02:54.2]} 7... a6 {[%clk 0:02:39.1]} 8. O-O-O {[%clk 0:02:53.9]}
8... Qc7 {[%clk 0:02:38.2]} 9. Nf3 {[%clk 0:02:33.2]} 9... Nf6 {[%clk
0:02:34.5]} 10. Bd3 {[%clk 0:02:27.8]} 10... Bb4 {[%clk 0:02:29.9]} 11. a3
{[%clk 0:02:27.3]} 11... Be7 {[%clk 0:02:28]} 12. Rhe1 {[%clk 0:02:17]} 12... d6
{[%clk 0:02:22.1]} 13. g4 {[%clk 0:02:05.6]} 13... Nd7 {[%clk 0:02:19]} 14. Ne2
{[%clk 0:02:02.4]} 14... O-O {[%clk 0:02:16.9]} 15. g5 {[%clk 0:01:57.1]} 15...
Nde5 {[%clk 0:02:08.1]} 16. Nxe5 {[%clk 0:01:54.5]} 16... dxe5 {[%clk 0:02:09]}
17. h4 {[%clk 0:01:52.7]} 17... Rac8 {[%clk 0:02:02.1]} 18. Kb1 {[%clk
0:01:52.6]} 18... b5 {[%clk 0:01:56.8]} 19. Qe3 {[%clk 0:01:51.7]} 19... Rfd8
{[%clk 0:01:52.1]} 20. Qg3 {[%clk 0:01:46.4]} 20... Qb6 {[%clk 0:01:34.4]} 21.
f4 {[%clk 0:01:44.6]} 21... a5 {[%clk 0:01:30.2]} 22. f5 {[%clk 0:01:42.8]}
22... a4 {[%clk 0:01:24.5]} 23. f6 {[%clk 0:01:42.5]} 23... Bxa3 {[%clk
0:01:17]} 24. Bxa3 {[%clk 0:01:41]} 24... b4 {[%clk 0:01:17.3]} 25. Bb2 {[%clk
0:01:38.9]} 25... Ra8 {[%clk 0:01:12.7]} 26. g6 {[%clk 0:01:30.9]} 26... hxg6
{[%clk 0:01:04.9]} 27. h5 {[%clk 0:01:31]} 27... axb3 {[%clk 0:00:48.7]} 28.
hxg6 {[%clk 0:01:26.2]} 28... bxc2+ {[%clk 0:00:39.8]} 29. Bxc2 {[%clk
0:01:25.8]} 29... gxf6 {[%clk 0:00:34]} 30. gxf7+ {[%clk 0:01:25.5]} 30... Kxf7
{[%clk 0:00:34.9]} 31. Rxd8 {[%clk 0:01:23]} 31... Rxd8 {[%clk 0:00:35.8]} 32.
Rh1 {[%clk 0:01:22.6]} 32... Rg8 {[%clk 0:00:28.1]} 33. Rh7+ {[%clk 0:01:17.5]}
33... Kf8 {[%clk 0:00:27.8]} 34. Qh2 {[%clk 0:01:17.6]} 34... Qe3 {[%clk
0:00:25.8]} 35. Qh6+ {[%clk 0:01:15.8]} 35... Qxh6 {[%clk 0:00:25.3]} 36. Rxh6
{[%clk 0:01:16.7]} 36... Rg2 {[%clk 0:00:23.4]} 37. Nc1 {[%clk 0:00:41.3]} 37...
Kg7 {[%clk 0:00:21.7]} 38. Rh1 {[%clk 0:00:38.2]} 38... Nd4 {[%clk 0:00:21.2]}
39. Bd3 {[%clk 0:00:35.1]} 39... f5 {[%clk 0:00:17.7]} 40. Re1 {[%clk
0:00:29.5]} 40... f4 {[%clk 0:00:17]} 41. Ne2 {[%clk 0:00:21.5]} 41... Nf3
{[%clk 0:00:14.5]} 42. Nxf4 {[%clk 0:00:19.5]} 42... Rg4 {[%clk 0:00:09.9]} 43.
Nxe6+ {[%clk 0:00:18.9]} 43... Kf6 {[%clk 0:00:10.2]} 44. Rf1 {[%clk 0:00:18.7]}
44... Kxe6 {[%clk 0:00:09.7]} 45. Rxf3 {[%clk 0:00:18.8]} 45... Bxe4 {[%clk
0:00:10.3]} 46. Bxe4 {[%clk 0:00:18.4]} 46... Rxe4 {[%clk 0:00:11.2]} 47. Rh3
{[%clk 0:00:18.4]} 47... Re2 {[%clk 0:00:11.3]} 48. Rb3 {[%clk 0:00:17]} 48...
Kd5 {[%clk 0:00:11.3]} 49. Rxb4 {[%clk 0:00:17.1]} 49... Ke6 {[%clk 0:00:11.5]}
50. Bc3 {[%clk 0:00:16]} 50... Kf5 {[%clk 0:00:11.6]} 51. Kc1 {[%clk 0:00:15.5]}
51... e4 {[%clk 0:00:11.8]} 52. Kd1 {[%clk 0:00:15.5]} 52... Ra2 {[%clk
0:00:11.5]} 53. Bd2 {[%clk 0:00:13.9]} 53... Kg4 {[%clk 0:00:10.9]} 54. Rxe4+
{[%clk 0:00:13.2]} 54... Kf3 {[%clk 0:00:11.4]} 55. Re3+ {[%clk 0:00:13.3]}
55... Kf2 {[%clk 0:00:11.3]} 56. Bc1 {[%clk 0:00:11.4]} 56... Ra1 {[%clk
0:00:10.3]} 57. Re8 {[%clk 0:00:11.3]} 57... Ra2 {[%clk 0:00:10.2]} 58. Rf8+
{[%clk 0:00:11.3]} 58... Kg3 {[%clk 0:00:10.4]} 59. Bd2 {[%clk 0:00:11.6]} 59...
Kg4 {[%clk 0:00:10.1]} 60. Ke2 {[%clk 0:00:11.7]} 60... Kh5 {[%clk 0:00:09.9]}
61. Kd3 {[%clk 0:00:10.7]} 61... Kg6 {[%clk 0:00:09.9]} 62. Bc3 {[%clk
0:00:10.2]} 62... Ra4 {[%clk 0:00:10]} 63. Bd4 {[%clk 0:00:09.8]} 63... Ra2
{[%clk 0:00:10.1]} 64. Ke4 {[%clk 0:00:09.9]} 64... Re2+ {[%clk 0:00:10]} 65.
Be3 {[%clk 0:00:09.1]} 65... Kg7 {[%clk 0:00:09.6]} 66. Rf4 {[%clk 0:00:09]}
66... Ra2 {[%clk 0:00:09.5]} 67. Rf3 {[%clk 0:00:09.4]} 67... Ra5 {[%clk
0:00:08.5]} 68. Bd4+ {[%clk 0:00:09.4]} 68... Kg6 {[%clk 0:00:08.8]} 69. Rf6+
{[%clk 0:00:08.4]} 69... Kg5 {[%clk 0:00:08.5]} 70. Rf7 {[%clk 0:00:08.5]} 70...
Ra4 {[%clk 0:00:08.5]} 71. Rg7+ {[%clk 0:00:08.1]} 71... Kh6 {[%clk 0:00:08.7]}
72. Rg2 {[%clk 0:00:07.8]} 72... Kh7 {[%clk 0:00:08.5]} 73. Ke5 {[%clk
0:00:07.7]} 73... Kh6 {[%clk 0:00:08]} 74. Rg1 {[%clk 0:00:05.4]} 74... Kh5
{[%clk 0:00:08]} 75. Rg8 {[%clk 0:00:05.4]} 75... Kh6 {[%clk 0:00:07.2]} 76. Rf8
{[%clk 0:00:03.7]} 76... Kg7 {[%clk 0:00:06.8]} 77. Rf4 {[%clk 0:00:03.4]} 77...
Kg6 {[%clk 0:00:06.8]} 78. Ke4 {[%clk 0:00:03.7]} 78... Kh5 {[%clk 0:00:05.9]}
79. Rf7 {[%clk 0:00:03.7]} 79... Kg6 {[%clk 0:00:05.3]} 80. Rd7 {[%clk 0:00:04]}
80... Kh5 {[%clk 0:00:05.2]} 81. Kf5 {[%clk 0:00:03.5]} 81... Ra5+ {[%clk
0:00:05.2]} 82. Be5 {[%clk 0:00:03.6]} 82... Kh6 {[%clk 0:00:04.9]} 83. Rd8
{[%clk 0:00:03.3]} 83... Ra7 {[%clk 0:00:04.5]} 84. Rh8+ {[%clk 0:00:03.3]}
84... Rh7 {[%clk 0:00:04.4]} 85. Rg8 {[%clk 0:00:03.9]} 85... Rf7+ {[%clk
0:00:04.1]} 86. Bf6 {[%clk 0:00:03.5]} 86... Kh7 {[%clk 0:00:03.8]} 87. Rh8#
{[%clk 0:00:03.5]} 1-0

[Event "*** Titled Tuesday Blitz"]
[Site "Chess.com"]
[Date "2021.04.27"]
[Round "10"]
[White "harlem4brew"]
[Black "nocnypako"]
[Result "1-0"]
[WhiteElo "2412"]
[BlackElo "2531"]
[TimeControl "180+1"]
[EndTime "11:49:25 PDT"]
[Termination "harlem4brew won by resignation"]

1. d4 {[%clk 0:03:00.9]} 1... Nf6 {[%clk 0:02:58.1]} 2. Nf3 {[%clk 0:03:00.5]}
2... g6 {[%clk 0:02:58]} 3. c4 {[%clk 0:03:00.7]} 3... Bg7 {[%clk 0:02:58.1]} 4.
Nc3 {[%clk 0:03:01.4]} 4... d5 {[%clk 0:02:58.1]} 5. cxd5 {[%clk 0:03:01]} 5...
Nxd5 {[%clk 0:02:57.5]} 6. e4 {[%clk 0:03:01.9]} 6... Nxc3 {[%clk 0:02:57.4]} 7.
bxc3 {[%clk 0:03:02.8]} 7... c5 {[%clk 0:02:57.4]} 8. Be3 {[%clk 0:03:03]} 8...
Bg4 {[%clk 0:02:56.1]} 9. Be2 {[%clk 0:03:02.9]} 9... Nc6 {[%clk 0:02:53.9]} 10.
e5 {[%clk 0:03:00.9]} 10... cxd4 {[%clk 0:02:50.5]} 11. cxd4 {[%clk 0:03:01.8]}
11... Qa5+ {[%clk 0:02:45]} 12. Kf1 {[%clk 0:02:59.4]} 12... O-O {[%clk
0:02:42.8]} 13. h3 {[%clk 0:02:57.2]} 13... Bxf3 {[%clk 0:02:42.6]} 14. Bxf3
{[%clk 0:02:56.1]} 14... Rfd8 {[%clk 0:02:41.5]} 15. Bxc6 {[%clk 0:02:55.6]}
15... bxc6 {[%clk 0:02:42.4]} 16. Qc2 {[%clk 0:02:55.9]} 16... c5 {[%clk
0:02:38.7]} 17. Qxc5 {[%clk 0:02:53.4]} 17... Qxc5 {[%clk 0:02:37.4]} 18. dxc5
{[%clk 0:02:54.3]} 18... Bxe5 {[%clk 0:02:37.2]} 19. Rc1 {[%clk 0:02:54.9]}
19... Rab8 {[%clk 0:02:28.3]} 20. g3 {[%clk 0:02:49.3]} 20... Rb2 {[%clk
0:02:25.9]} 21. a4 {[%clk 0:02:42.8]} 21... Ra2 {[%clk 0:02:25.5]} 22. Rc4
{[%clk 0:02:41.6]} 22... Rc8 {[%clk 0:02:13.8]} 23. Kg2 {[%clk 0:02:41]} 23...
Rc6 {[%clk 0:02:10.4]} 24. Rd1 {[%clk 0:02:38.6]} 24... Rc7 {[%clk 0:02:05.6]}
25. c6 {[%clk 0:02:35.3]} 25... Bd6 {[%clk 0:02:03.9]} 26. Bf4 {[%clk
0:02:34.3]} 26... Kf8 {[%clk 0:01:52.8]} 27. Rxd6 {[%clk 0:02:32.1]} 1-0

[Event "*** Titled Tuesday Blitz"]
[Site "Chess.com"]
[Date "2021.04.27"]
[Round "10"]
[White "klimkoj"]
[Black "NiranjanNavalgund"]
[Result "0-1"]
[WhiteElo "2599"]
[BlackElo "2489"]
[TimeControl "180+1"]
[EndTime "11:49:32 PDT"]
[Termination "NiranjanNavalgund won by resignation"]

1. e4 {[%clk 0:03:00.9]} 1... e5 {[%clk 0:02:59.5]} 2. Nf3 {[%clk 0:03:00.5]}
2... Nc6 {[%clk 0:02:59.5]} 3. Bb5 {[%clk 0:03:01.1]} 3... a6 {[%clk 0:02:58.2]}
4. Ba4 {[%clk 0:03:00.7]} 4... Nf6 {[%clk 0:02:57.8]} 5. O-O {[%clk 0:03:00.4]}
5... Be7 {[%clk 0:02:58.3]} 6. Re1 {[%clk 0:03:00.5]} 6... b5 {[%clk 0:02:58.8]}
7. Bb3 {[%clk 0:03:00.7]} 7... d6 {[%clk 0:02:59.7]} 8. c3 {[%clk 0:03:00.4]}
8... O-O {[%clk 0:03:00.2]} 9. h3 {[%clk 0:03:00.8]} 9... Nb8 {[%clk 0:03:00.3]}
10. d4 {[%clk 0:03:01.3]} 10... Nbd7 {[%clk 0:03:00.8]} 11. c4 {[%clk
0:03:01.8]} 11... c6 {[%clk 0:03:00.6]} 12. a3 {[%clk 0:02:59.9]} 12... bxc4
{[%clk 0:02:51.1]} 13. Bxc4 {[%clk 0:02:57.4]} 13... Nxe4 {[%clk 0:02:51.3]} 14.
Rxe4 {[%clk 0:02:56.8]} 14... d5 {[%clk 0:02:51.6]} 15. Re1 {[%clk 0:02:57.2]}
15... dxc4 {[%clk 0:02:50.6]} 16. dxe5 {[%clk 0:02:57.1]} 16... Nc5 {[%clk
0:02:49.2]} 17. Nbd2 {[%clk 0:02:50]} 17... Be6 {[%clk 0:02:45.4]} 18. Qe2
{[%clk 0:02:42.8]} 18... Qd3 {[%clk 0:02:43.5]} 19. Ne4 {[%clk 0:02:40]} 19...
Nb3 {[%clk 0:02:38.9]} 20. Bg5 {[%clk 0:02:33.3]} 20... Qxe2 {[%clk 0:02:32.1]}
21. Rxe2 {[%clk 0:02:28]} 21... Bxg5 {[%clk 0:02:32.1]} 22. Rd1 {[%clk
0:02:25.4]} 22... Be7 {[%clk 0:02:32.1]} 23. Nc3 {[%clk 0:02:22.9]} 23... Rfd8
{[%clk 0:02:31.3]} 24. Rde1 {[%clk 0:02:23.3]} 24... Bc5 {[%clk 0:02:28.6]} 25.
Ne4 {[%clk 0:02:11]} 25... h6 {[%clk 0:02:27.7]} 26. Kh2 {[%clk 0:02:05]} 26...
Be7 {[%clk 0:02:26.9]} 27. Nc3 {[%clk 0:01:59]} 27... Rd3 {[%clk 0:02:25.4]} 28.
Nb1 {[%clk 0:01:51.3]} 28... Rad8 {[%clk 0:02:24.6]} 29. Nc3 {[%clk 0:01:51.5]}
29... Bxa3 {[%clk 0:02:22.3]} 0-1

[Event "*** Titled Tuesday Blitz"]
[Site "Chess.com"]
[Date "2021.04.27"]
[Round "10"]
[White "MPGM"]
[Black "Leonid_Starozhilov"]
[Result "0-1"]
[WhiteElo "2506"]
[BlackElo "2690"]
[TimeControl "180+1"]
[EndTime "11:50:13 PDT"]
[Termination "Leonid_Starozhilov won by resignation"]

1. c4 {[%clk 0:03:00.9]} 1... Nf6 {[%clk 0:03:00.1]} 2. Nc3 {[%clk 0:02:59.5]}
2... g6 {[%clk 0:03:00.5]} 3. g3 {[%clk 0:02:58]} 3... Bg7 {[%clk 0:03:00.5]} 4.
Bg2 {[%clk 0:02:58.7]} 4... O-O {[%clk 0:03:01.3]} 5. e3 {[%clk 0:02:54.2]} 5...
d6 {[%clk 0:02:56.4]} 6. Nge2 {[%clk 0:02:54]} 6... c6 {[%clk 0:02:52.1]} 7. O-O
{[%clk 0:02:53.6]} 7... a5 {[%clk 0:02:49.2]} 8. b3 {[%clk 0:02:52.3]} 8... e5
{[%clk 0:02:43.6]} 9. Bb2 {[%clk 0:02:51.5]} 9... Na6 {[%clk 0:02:40.7]} 10. d4
{[%clk 0:02:48.6]} 10... Qe7 {[%clk 0:02:29.3]} 11. Rc1 {[%clk 0:02:30.8]} 11...
Re8 {[%clk 0:02:25.9]} 12. dxe5 {[%clk 0:02:24.7]} 12... dxe5 {[%clk 0:02:25.7]}
13. Na4 {[%clk 0:02:25.2]} 13... Bf5 {[%clk 0:02:18.9]} 14. a3 {[%clk
0:02:09.2]} 14... Rad8 {[%clk 0:02:08.4]} 15. Qe1 {[%clk 0:02:09.5]} 15... Bd3
{[%clk 0:02:01.4]} 16. c5 {[%clk 0:02:06.2]} 16... Ne4 {[%clk 0:01:49.8]} 17.
Qxa5 {[%clk 0:01:53.7]} 17... Bxe2 {[%clk 0:01:40.9]} 18. Bxe4 {[%clk
0:01:53.7]} 18... Bxf1 {[%clk 0:01:38.1]} 19. Rxf1 {[%clk 0:01:42.8]} 19... f5
{[%clk 0:01:27.8]} 20. Bd3 {[%clk 0:01:42.8]} 20... Rxd3 {[%clk 0:01:26.8]} 0-1

[Event "*** Titled Tuesday Blitz"]
[Site "Chess.com"]
[Date "2021.04.27"]
[Round "10"]
[White "zurzan"]
[Black "IsuruAlahakoon"]
[Result "0-1"]
[WhiteElo "2015"]
[BlackElo "2171"]
[TimeControl "180+1"]
[EndTime "11:50:30 PDT"]
[Termination "IsuruAlahakoon won by resignation"]

1. f4 {[%clk 0:03:00.9]} 1... e5 {[%clk 0:02:58.2]} 2. fxe5 {[%clk 0:03:00.6]}
2... d6 {[%clk 0:02:58.7]} 3. exd6 {[%clk 0:03:01.5]} 3... Bxd6 {[%clk
0:02:58.5]} 4. g3 {[%clk 0:03:02.4]} 4... h5 {[%clk 0:02:57.2]} 5. Nf3 {[%clk
0:03:00.7]} 5... h4 {[%clk 0:02:57.5]} 6. Rg1 {[%clk 0:02:43.8]} 6... hxg3
{[%clk 0:02:54.4]} 7. hxg3 {[%clk 0:02:44]} 7... Nf6 {[%clk 0:02:49.7]} 8. Nc3
{[%clk 0:02:30]} 8... Nh5 {[%clk 0:02:45.7]} 9. Ne4 {[%clk 0:02:29.5]} 9... Bf5
{[%clk 0:02:39.8]} 10. Nxd6+ {[%clk 0:02:29]} 10... Qxd6 {[%clk 0:02:40.3]} 11.
Kf2 {[%clk 0:02:15.3]} 11... Bg6 {[%clk 0:02:24.4]} 12. d3 {[%clk 0:02:11.5]}
12... Nc6 {[%clk 0:02:22.1]} 13. e4 {[%clk 0:01:51.6]} 13... O-O-O {[%clk
0:02:19.7]} 14. Be3 {[%clk 0:01:49.6]} 14... Nf6 {[%clk 0:02:16.5]} 15. Qc1
{[%clk 0:01:36.9]} 15... Ng4+ {[%clk 0:02:13.1]} 16. Ke2 {[%clk 0:01:37.1]}
16... Bh5 {[%clk 0:02:09.5]} 17. Ke1 {[%clk 0:01:26]} 17... Nxe3 {[%clk
0:01:59.7]} 18. Qxe3 {[%clk 0:01:25.6]} 18... Bxf3 {[%clk 0:02:00.3]} 19. Qxf3
{[%clk 0:01:25.6]} 19... Nd4 {[%clk 0:02:00.9]} 20. Qd1 {[%clk 0:01:22.3]} 20...
Rh2 {[%clk 0:01:55.1]} 21. c3 {[%clk 0:01:08.2]} 21... Nc2+ {[%clk 0:01:50.8]}
0-1

[Event "*** Titled Tuesday Blitz"]
[Site "Chess.com"]
[Date "2021.04.27"]
[Round "10"]
[White "superchess02"]
[Black "rpragchess"]
[Result "0-1"]
[WhiteElo "2789"]
[BlackElo "2904"]
[TimeControl "180+1"]
[EndTime "11:50:43 PDT"]
[Termination "rpragchess won by resignation"]

1. c4 {[%clk 0:03:00.9]} 1... Nf6 {[%clk 0:03:00.2]} 2. Nf3 {[%clk 0:03:01.4]}
2... g6 {[%clk 0:03:00.1]} 3. g3 {[%clk 0:03:02.1]} 3... Bg7 {[%clk 0:03:00]} 4.
Bg2 {[%clk 0:03:03]} 4... d6 {[%clk 0:03:00.3]} 5. O-O {[%clk 0:03:03.9]} 5...
Nc6 {[%clk 0:02:58.6]} 6. Nc3 {[%clk 0:03:04.8]} 6... Bd7 {[%clk 0:02:58.5]} 7.
d4 {[%clk 0:03:05.1]} 7... Qc8 {[%clk 0:02:57.7]} 8. d5 {[%clk 0:03:03.1]} 8...
Ne5 {[%clk 0:02:57.1]} 9. Nxe5 {[%clk 0:03:03.2]} 9... dxe5 {[%clk 0:02:58]} 10.
f4 {[%clk 0:03:03.5]} 10... exf4 {[%clk 0:02:56.3]} 11. Bxf4 {[%clk 0:03:04.4]}
11... O-O {[%clk 0:02:55.7]} 12. Rc1 {[%clk 0:02:57.4]} 12... Ng4 {[%clk
0:02:51.5]} 13. e4 {[%clk 0:02:53]} 13... Ne5 {[%clk 0:02:50.8]} 14. c5 {[%clk
0:02:50.5]} 14... c6 {[%clk 0:02:45.6]} 15. d6 {[%clk 0:02:50.5]} 15... exd6
{[%clk 0:02:43.7]} 16. Qxd6 {[%clk 0:02:48]} 16... Re8 {[%clk 0:02:43]} 17. Qd2
{[%clk 0:02:43.8]} 17... Be6 {[%clk 0:02:41.2]} 18. Kh1 {[%clk 0:02:43.1]} 18...
Bc4 {[%clk 0:02:39.8]} 19. Ne2 {[%clk 0:02:35.6]} 19... Bxa2 {[%clk 0:02:30.8]}
20. Nd4 {[%clk 0:02:26.7]} 20... Be6 {[%clk 0:02:23.3]} 21. Bxe5 {[%clk
0:02:18.6]} 21... Bxe5 {[%clk 0:02:22.6]} 22. Nxe6 {[%clk 0:02:19.3]} 22... Qxe6
{[%clk 0:02:23.5]} 23. b4 {[%clk 0:02:19.8]} 23... Rad8 {[%clk 0:02:22]} 24. Qh6
{[%clk 0:02:17.5]} 24... Rd4 {[%clk 0:02:14.2]} 25. Ra1 {[%clk 0:02:03.9]} 25...
a6 {[%clk 0:02:12.1]} 26. Rab1 {[%clk 0:02:03.5]} 26... Red8 {[%clk 0:02:10.8]}
27. Qh4 {[%clk 0:01:52.5]} 27... f6 {[%clk 0:02:07.7]} 28. Qh6 {[%clk
0:01:48.6]} 28... Qe7 {[%clk 0:02:03.1]} 29. Qe3 {[%clk 0:01:45.5]} 29... Rd3
{[%clk 0:02:02.2]} 30. Qe2 {[%clk 0:01:44.1]} 30... Rd2 {[%clk 0:02:00]} 31.
Qc4+ {[%clk 0:01:44.1]} 31... Kg7 {[%clk 0:02:00]} 32. Bf3 {[%clk 0:01:43]}
32... R8d4 {[%clk 0:01:56.7]} 33. Qc1 {[%clk 0:01:42.9]} 33... h5 {[%clk
0:01:54]} 34. Rd1 {[%clk 0:01:42.1]} 34... Rxd1+ {[%clk 0:01:50.5]} 35. Bxd1
{[%clk 0:01:43]} 35... h4 {[%clk 0:01:50.9]} 36. Qe3 {[%clk 0:01:41.5]} 36...
Qd7 {[%clk 0:01:45.7]} 0-1

[Event "*** Titled Tuesday Blitz"]
[Site "Chess.com"]
[Date "2021.04.27"]
[Round "10"]
[White "NateSolon"]
[Black "WPWPWP-2015"]
[Result "1-0"]
[WhiteElo "2621"]
[BlackElo "2415"]
[TimeControl "180+1"]
[EndTime "11:50:52 PDT"]
[Termination "NateSolon won by resignation"]

1. d4 {[%clk 0:03:00.9]} 1... d5 {[%clk 0:02:59]} 2. c4 {[%clk 0:03:01.1]} 2...
dxc4 {[%clk 0:02:59.9]} 3. Nf3 {[%clk 0:03:00.8]} 3... Nf6 {[%clk 0:02:59.3]} 4.
e3 {[%clk 0:03:00.5]} 4... e6 {[%clk 0:03:00.2]} 5. Bxc4 {[%clk 0:03:00.6]} 5...
a6 {[%clk 0:03:01.1]} 6. O-O {[%clk 0:03:00.7]} 6... c5 {[%clk 0:03:02]} 7. Be2
{[%clk 0:02:54.6]} 7... cxd4 {[%clk 0:02:59.1]} 8. Nxd4 {[%clk 0:02:53.4]} 8...
Be7 {[%clk 0:02:57.2]} 9. Bf3 {[%clk 0:02:44.2]} 9... O-O {[%clk 0:02:58.1]} 10.
Nc3 {[%clk 0:02:37.6]} 10... Nbd7 {[%clk 0:02:55.8]} 11. b3 {[%clk 0:02:23.8]}
11... Ne5 {[%clk 0:02:53]} 12. Bb2 {[%clk 0:02:21]} 12... Nxf3+ {[%clk
0:02:52.5]} 13. Qxf3 {[%clk 0:02:21.9]} 13... e5 {[%clk 0:02:48.8]} 14. Nf5
{[%clk 0:02:19.8]} 14... Bb4 {[%clk 0:02:20.5]} 15. Rfd1 {[%clk 0:02:14.9]}
15... Qa5 {[%clk 0:02:19.8]} 16. Nd5 {[%clk 0:01:55]} 16... Nxd5 {[%clk
0:02:02.6]} 17. Rxd5 {[%clk 0:01:55.9]} 17... b5 {[%clk 0:02:02.4]} 18. Nxg7
{[%clk 0:01:42.5]} 18... Bc3 {[%clk 0:01:55.8]} 19. Nh5 {[%clk 0:01:17.6]} 19...
e4 {[%clk 0:01:14.8]} 20. Rg5+ {[%clk 0:01:16.7]} 1-0

[Event "*** Titled Tuesday Blitz"]
[Site "Chess.com"]
[Date "2021.04.27"]
[Round "10"]
[White "Gmedmundo"]
[Black "CraiggoryC"]
[Result "0-1"]
[WhiteElo "2400"]
[BlackElo "2243"]
[TimeControl "180+1"]
[EndTime "11:50:55 PDT"]
[Termination "CraiggoryC won on time"]

1. e4 {[%clk 0:03:00.9]} 1... e6 {[%clk 0:02:59.7]} 2. d4 {[%clk 0:02:59.2]}
2... d5 {[%clk 0:03:00.3]} 3. Nd2 {[%clk 0:02:57.4]} 3... Be7 {[%clk 0:02:59.9]}
4. Ngf3 {[%clk 0:02:55.6]} 4... Nf6 {[%clk 0:02:59.6]} 5. e5 {[%clk 0:02:51.3]}
5... Nfd7 {[%clk 0:02:59.9]} 6. Bd3 {[%clk 0:02:48.3]} 6... c5 {[%clk
0:03:00.5]} 7. c3 {[%clk 0:02:46.7]} 7... Nc6 {[%clk 0:03:01.1]} 8. O-O {[%clk
0:02:43.3]} 8... a5 {[%clk 0:03:01.7]} 9. a4 {[%clk 0:02:39.3]} 9... cxd4 {[%clk
0:02:58.1]} 10. cxd4 {[%clk 0:02:38.1]} 10... Nb4 {[%clk 0:02:58.3]} 11. Bb1
{[%clk 0:02:28.4]} 11... b6 {[%clk 0:02:57.7]} 12. Re1 {[%clk 0:02:27.1]} 12...
Ba6 {[%clk 0:02:55.8]} 13. Ra3 {[%clk 0:02:25.5]} 13... Nb8 {[%clk 0:02:44]} 14.
Rc3 {[%clk 0:02:23.1]} 14... N8c6 {[%clk 0:02:39]} 15. Nf1 {[%clk 0:02:21.3]}
15... Rc8 {[%clk 0:02:34.5]} 16. Ng3 {[%clk 0:02:18.5]} 16... g6 {[%clk
0:02:33.8]} 17. Bh6 {[%clk 0:02:16.3]} 17... b5 {[%clk 0:02:19.3]} 18. axb5
{[%clk 0:02:11.4]} 18... Bxb5 {[%clk 0:02:19]} 19. Qc2 {[%clk 0:02:10.1]} 19...
Nxc2 {[%clk 0:02:18.3]} 0-1

[Event "*** Titled Tuesday Blitz"]
[Site "Chess.com"]
[Date "2021.04.27"]
[Round "10"]
[White "beto-betun"]
[Black "HanSchut"]
[Result "1-0"]
[WhiteElo "2222"]
[BlackElo "2263"]
[TimeControl "180+1"]
[EndTime "11:51:17 PDT"]
[Termination "beto-betun won by resignation"]

1. d4 {[%clk 0:03:00.9]} 1... Nf6 {[%clk 0:02:59.5]} 2. Nf3 {[%clk 0:03:01.1]}
2... g6 {[%clk 0:02:59.7]} 3. g3 {[%clk 0:03:01.4]} 3... Bg7 {[%clk 0:03:00.2]}
4. Bg2 {[%clk 0:03:02.1]} 4... O-O {[%clk 0:03:00.8]} 5. O-O {[%clk 0:03:02.7]}
5... d5 {[%clk 0:03:01.6]} 6. c4 {[%clk 0:03:02.8]} 6... dxc4 {[%clk 0:03:02.5]}
7. Qc2 {[%clk 0:03:02.9]} 7... Nc6 {[%clk 0:02:59.4]} 8. Qxc4 {[%clk 0:03:02.1]}
8... Be6 {[%clk 0:02:59.3]} 9. Qc2 {[%clk 0:02:53.9]} 9... Nxd4 {[%clk
0:02:58.2]} 10. Nxd4 {[%clk 0:02:53.1]} 10... Qxd4 {[%clk 0:02:59.1]} 11. Be3
{[%clk 0:02:52.2]} 11... Qb4 {[%clk 0:02:45.5]} 12. Bc5 {[%clk 0:02:24.2]} 12...
Qc4 {[%clk 0:02:38.5]} 13. Qxc4 {[%clk 0:02:20.9]} 13... Bxc4 {[%clk 0:02:39.4]}
14. Rc1 {[%clk 0:02:19.7]} 14... Bxe2 {[%clk 0:02:36.7]} 15. Bxe7 {[%clk
0:02:11.7]} 15... Rfe8 {[%clk 0:02:32.9]} 16. Rxc7 {[%clk 0:01:57.3]} 16... Nd5
{[%clk 0:02:00]} 17. Bxd5 {[%clk 0:01:35]} 17... Bxb2 {[%clk 0:02:00.4]} 18.
Bxf7+ {[%clk 0:01:26.3]} 18... Kxf7 {[%clk 0:01:53.1]} 19. Ba3+ {[%clk
0:01:26.2]} 19... Kg8 {[%clk 0:01:50]} 20. Bxb2 {[%clk 0:01:25.7]} 20... Bf3
{[%clk 0:01:50.6]} 21. Nd2 {[%clk 0:01:18.1]} 21... Bc6 {[%clk 0:01:45.5]} 22.
Rg7+ {[%clk 0:01:12.4]} 22... Kf8 {[%clk 0:01:44.3]} 23. Rxh7 {[%clk 0:01:06.3]}
23... Rad8 {[%clk 0:01:41.3]} 24. Nc4 {[%clk 0:00:59.5]} 24... Re2 {[%clk
0:01:32.1]} 25. Rh8+ {[%clk 0:00:55.4]} 25... Ke7 {[%clk 0:01:32]} 26. Bf6+
{[%clk 0:00:45.5]} 26... Kxf6 {[%clk 0:01:32.3]} 27. Rxd8 {[%clk 0:00:46]} 1-0

[Event "*** Titled Tuesday Blitz"]
[Site "Chess.com"]
[Date "2021.04.27"]
[Round "10"]
[White "chessflav"]
[Black "ErikBlomqvist"]
[Result "0-1"]
[WhiteElo "2343"]
[BlackElo "2566"]
[TimeControl "180+1"]
[EndTime "11:51:19 PDT"]
[Termination "ErikBlomqvist won by checkmate"]

1. e4 {[%clk 0:02:59]} 1... c6 {[%clk 0:02:59.8]} 2. Nc3 {[%clk 0:02:59.4]} 2...
d5 {[%clk 0:03:00.3]} 3. Nf3 {[%clk 0:03:00]} 3... dxe4 {[%clk 0:03:00.4]} 4.
Nxe4 {[%clk 0:03:00.4]} 4... Nf6 {[%clk 0:03:01.3]} 5. Nxf6+ {[%clk 0:03:00.2]}
5... exf6 {[%clk 0:03:02.2]} 6. d4 {[%clk 0:02:56.9]} 6... Bd6 {[%clk
0:03:03.1]} 7. Bd3 {[%clk 0:02:56.6]} 7... O-O {[%clk 0:03:02.6]} 8. O-O {[%clk
0:02:57.3]} 8... Re8 {[%clk 0:03:01.3]} 9. h3 {[%clk 0:02:57.3]} 9... Nd7 {[%clk
0:02:57.4]} 10. c3 {[%clk 0:02:56.9]} 10... Nf8 {[%clk 0:02:56.7]} 11. a4 {[%clk
0:02:55.8]} 11... a5 {[%clk 0:02:55.6]} 12. Qc2 {[%clk 0:02:53.4]} 12... Bc7
{[%clk 0:02:43.1]} 13. Bd2 {[%clk 0:02:47.5]} 13... Qd6 {[%clk 0:02:39.1]} 14.
Rfe1 {[%clk 0:02:46.4]} 14... Be6 {[%clk 0:02:22.4]} 15. c4 {[%clk 0:02:17.4]}
15... Rad8 {[%clk 0:02:15.8]} 16. b3 {[%clk 0:02:16.1]} 16... Bc8 {[%clk
0:01:49.8]} 17. Rad1 {[%clk 0:01:57.1]} 17... g6 {[%clk 0:01:48.6]} 18. Bc3
{[%clk 0:01:54.2]} 18... Ne6 {[%clk 0:01:44.4]} 19. d5 {[%clk 0:01:37.7]} 19...
Ng5 {[%clk 0:01:36]} 20. Rxe8+ {[%clk 0:00:55.3]} 20... Rxe8 {[%clk 0:01:36.5]}
21. Be2 {[%clk 0:00:32.6]} 21... Nxf3+ {[%clk 0:01:34.5]} 22. gxf3 {[%clk
0:00:32.7]} 22... Qh2+ {[%clk 0:01:34.3]} 23. Kf1 {[%clk 0:00:33.5]} 23... Qh1#
{[%clk 0:01:34.7]} 0-1